Cogmind - Beta 16.1 @@@ ROGUE MODE // 2026.04.06 @ 16:41:57 Player: Folded_Phoenix Result: Destroyed by S-10 Pest with Light Assault Rifle Performance ------------- Evolutions (0) 0 Regions Visited (4) 800 Robots Destroyed (17) 85 Value Destroyed (237) 237 Prototype IDs (0) 0 Alien Tech Used (0) 0 Bonus (0) 0 TOTAL SCORE: 1122 Bonus ------- None Cogmind --------- Core Integrity 0/250 Matter 213/300 Energy 125/125 System Corruption 0% Temperature Cool (0) Movement Flying (117) Ox1 Location -9/Mines Parts ------- > --- POWER (1) -------- Light Ion Engine > --- PROPULSION (2) --- Flight Unit Flight Unit > --- UTILITY (2) ------ Small Storage Unit Light Armor Plating > --- WEAPON (2) ------- Light Assault Rifle > --- INVENTORY (8) ---- Flight Unit Flight Unit Flight Unit Flight Unit Experimental Sensor Array Heavy Battle Rifle Rocket Launcher Mace Peak State ------------ > --- POWER ------------ Improved Ion Engine > --- PROPULSION ------- Aluminum Leg Aluminum Leg > --- UTILITY ---------- Small Storage Unit Seismic Detector > --- WEAPON ----------- Light Assault Rifle Heavy Battle Rifle > --- INVENTORY -------- Aluminum Leg Aluminum Leg Hover Unit Improved Heat Sink Experimental Sensor Array Light Armor Plating Mace [Rating: 12] Favorites ----------- Power Light Ion Engine Engine Light Ion Engine Propulsion Aluminum Leg Leg Aluminum Leg Wheel Compact Wheel Flight Unit Flight Unit Utility Small Storage Unit Device Seismic Detector Storage Small Storage Unit Protection Light Armor Plating Weapon Light Assault Rifle Energy Gun Medium Laser Ballistic Gun Light Assault Rifle Ballistic Cannon Light Cannon Launcher Grenade Launcher Impact Weapon Mace Build | -11 -10 -10 -10 -9 ------- Run | Yrd Mat Min Exi Min Slots Evolved . | . . . . . Power . | . . . . . Propulsion . | . . . . . Utility . | . . . . . Weapon . | . . . . . Parts Attached 23 | 6 3 3 . 11 Power 3 | 1 . . . 2 Engine 3 | 1 . . . 2 Core . | . . . . . Reactor . | . . . . . Propulsion 9 | 2 . 2 . 5 Treads . | . . . . . Leg 4 | . . 2 . 2 Wheel 2 | 2 . . . . Hover . | . . . . . Flight 3 | . . . . 3 Utility 3 | 1 1 . . 1 Device 1 | . 1 . . . Storage 1 | 1 . . . . Processor . | . . . . . Hackware . | . . . . . Protection 1 | . . . . 1 Artifact . | . . . . . Weapon 8 | 2 2 1 . 3 Energy Gun 1 | 1 . . . . Energy Cannon . | . . . . . Ballistic Gun 4 | 1 1 1 . 1 Ballistic Cannon 1 | . . . . 1 Launcher 1 | . 1 . . . Special Weapon . | . . . . . Impact Weapon 1 | . . . . 1 Slashing Weapon . | . . . . . Piercing Weapon . | . . . . . Special Melee Weapon . | . . . . . Unidentified Prototypes . | . . . . . Parts Lost 6 | . . 2 . 4 Power 1 | . . . . 1 Propulsion 3 | . . 1 . 2 Utility 1 | . . . . 1 Weapon 1 | . . 1 . . Highest Loss Streak 4 | . . 2 . 4 To Critical Strikes . | . . . . . Average Backups 7 | 1 6 7 8 7 Power . | . . . . . Propulsion 2 | 1 2 2 3 2 Utility 1 | . . 1 2 2 Weapon 2 | . 3 2 2 2 Tool/Special . | . . . . . Unused Backups 10 | . . 1 . 9 Power . | . . . . . Propulsion 4 | . . . . 4 Utility 3 | . . 1 . 2 Weapon 2 | . . . . 2 Tool/Special 1 | . . . . 1 Average Slot Usage (%) 93 | . 86 99 100 86 Engine 13 | . 14 14 14 12 Leg 18 | . . 25 28 14 Wheel 4 | . 28 2 . . Flight 3 | . . . . 11 Device 9 | . 1 14 14 7 Storage 14 | . 14 14 14 14 Ballistic Gun 23 | . 24 28 28 16 Ballistic Cannon 1 | . . . . 5 Peak Build Rating 12 | 6 7 8 8 12 Average Rating 7 | 4 6 7 8 8 On Entrance 5 | . 6 7 8 8 Avg Prop Armor Cover (%) . | . . . . . Naked Turns . | . . . . . Heaviest Build 17 | 12 13 12 12 17 Greatest Support 32 | 32 32 32 20 20 Greatest Overweight (x) 4 | . . . . 4 Average Overweight (x) . | . . . . . Largest Inventory Capacity 8 | 8 8 8 8 8 Average Capacity 7 | 7 8 8 8 8 Most Carried 8 | 3 8 8 8 8 Average Carried 7 | 1 7 7 8 7 Final Capacity 8 | 8 8 8 8 8 Final Carried 8 | 2 8 8 8 8 Class Distribution -------------------- 87% | Mutant 12% | Scavenger-Mutant Dominant Class ---------------- Mutant | -10/Materials Mutant | -10/Mines Mutant | -10/Exiles Mutant | -9/Mines Resources | -11 -10 -10 -10 -9 ----------- Run | Yrd Mat Min Exi Min Matter Collected 480 | 210 17 156 . 97 Remotely . | . . . . . Salvage Created 276 | . 22 96 . 158 Parts 28 | . 4 4 . 20 Haulers Intercepted . | . . . . . Recyclers Shooed . | . . . . . Parts Field Recycled . | . . . . . Retrieved Matter . | . . . . . Parts Self-Destructed . | . . . . . Prevented . | . . . . . Parts Restored . | . . . . . Kills | -11 -10 -10 -10 -9 ------- Run | Yrd Mat Min Exi Min Combat Hostiles Destroyed 16 | . 3 2 . 11 Guns 13 | . . 2 . 11 AOE 3 | . 3 . . . Classes Destroyed 3 | . 2 1 . . Watcher 1 | . 1 . . . Swarmer 14 | . 3 . . 11 Grunt 2 | . . 2 . . Best Kill Streak 10 | . 4 1 . 10 Combat Bots Only 10 | . 3 1 . 10 Max Kills in Single Turn 2 | . 2 1 . 2 Gunslinging 1 | . . . . 1 Exploded 2 | . 2 . . . Melee . | . . . . . Uniques/NPCs Destroyed . | . . . . . Combat | -11 -10 -10 -10 -9 -------- Run | Yrd Mat Min Exi Min Hostile Shots Fired 145 | . 7 23 . 115 Missed 37 | . 3 4 . 30 Hits 108 | . 4 19 . 85 Projectile 108 | . 4 19 . 85 Critical Strikes 1 | . . 1 . . Damage Taken 1013 | . 74 274 . 665 Core 253 | . 12 30 . 211 Absorbed by Shields . | . . . . . Core Remaining (%) 100 | 100 . . . . Volleys Fired 42 | . 8 10 . 24 Largest 2 | . 2 2 . 2 Hottest 53 | . 50 40 . 53 Shots Fired 79 | . 16 20 . 43 Gun 76 | . 14 20 . 42 Cannon 1 | . . . . 1 Launcher 2 | . 2 . . . Special . | . . . . . Kinetic 77 | . 14 20 . 43 Thermal . | . . . . . Explosive 2 | . 2 . . . Electromagnetic . | . . . . . Robot Hit Streak 9 | . 2 9 . 4 Robot Miss Streak 6 | . 6 1 . 5 Penetration Max . | . . . . . Secondary Targets 3 | . . . . 3 Max Gunslinging Chain 1 | . . . . 1 Shots Hit Robots 45 | . 6 15 . 24 Core Hits 26 | . 6 6 . 14 Critical Kills . | . . . . . Critical Parts Destroyed . | . . . . . Critical Strikes . | . . . . . Melee Attacks . | . . . . . Impact . | . . . . . Slashing . | . . . . . Piercing . | . . . . . Sneak Attacks . | . . . . . Combat Hostiles . | . . . . . Follow-up Attacks . | . . . . . Damage Inflicted 835 | . 301 157 . 377 Guns 600 | . 68 157 . 375 Cannons . | . . . . . Explosions 233 | . 233 . . . Melee . | . . . . . Ramming 2 | . . . . 2 Kinetic 600 | . 68 157 . 375 Thermal . | . . . . . Explosive 233 | . 233 . . . Electromagnetic . | . . . . . Impact . | . . . . . Slashing . | . . . . . Piercing . | . . . . . Highest Corruption . | . . . . . Average Corruption . | . . . . . Corruption Purged . | . . . . . Corruption Blocked . | . . . . . Overload Shots . | . . . . . Overflow Damage . | . . . . . Projectiles . | . . . . . Explosions . | . . . . . Melee . | . . . . . Knockbacks . | . . . . . Impact . | . . . . . Kinetic . | . . . . . Secondary . | . . . . . Self-Inflicted Damage 14 | . 13 . . 1 Shots 1 | . 1 . . . Rammed 1 | . . . . 1 Targets Rammed 1 | . . . . 1 Kicked . | . . . . . Crushed . | . . . . . Highest Temperature 27 | . . 27 . 22 Average Temperature 6 | . . 11 . 4 Received Heat Transfer 186 | . 12 174 . . Siege Activations . | . . . . . Martial Activations . | . . . . . Shielding Activations . | . . . . . Robots Disrupted . | . . . . . Combat Hostiles . | . . . . . Robots Corrupted . | . . . . . Combat Hostiles . | . . . . . Parts Fried . | . . . . . Impact Corruptions . | . . . . . Robots Melted . | . . . . . Combat Hostiles . | . . . . . Parts Melted . | . . . . . Heat Transferred . | . . . . . Parts Sabotaged . | . . . . . Parts Stolen . | . . . . . Parts Stripped . | . . . . . Power Chain Reactions . | . . . . . Alert | -11 -10 -10 -10 -9 ------- Run | Yrd Mat Min Exi Min Maximum Alert Level . | . . . . . Low Security (%) 100 | 100 100 100 . 100 Level 1 . | . . . . . Level 2 . | . . . . . Level 3 . | . . . . . Level 4 . | . . . . . Level 5 . | . . . . . High Security . | . . . . . Max Security . | . . . . . Peak Influence 154 | . 90 30 . 154 Initial . | . . . . . Average 31 | . 32 2 . 54 Influence Increases 394 | . 90 50 . 254 Destroy 0b10 Robot/C 320 | . 60 40 . 220 Destroy 0b10 Robot/NC 5 | . 5 . . . Destroy Leader 52 | . 12 10 . 30 Destroy Structure 17 | . 13 . . 4 Influence Decreases 306 | . 90 50 . 166 Time Decay 256 | . 90 40 . 126 Lost Part 50 | . . 10 . 40 Squads Dispatched 1 | . 1 . . . Investigation . | . . . . . Extermination . | . . . . . Reinforcement 1 | . 1 . . . Assault . | . . . . . Garrison . | . . . . . Intercept . | . . . . . Searches Triggered . | . . . . . Construction Impeded . | . . . . . Haulers Reinforced . | . . . . . Active Scanning Responses . | . . . . . Cargo Convoy Interrupts . | . . . . . Stealth | -11 -10 -10 -10 -9 --------- Run | Yrd Mat Min Exi Min Distress Signals 2 | . 1 . . 1 Communications Jammed . | . . . . . Distress Signals . | . . . . . Times Spotted 25 | . 9 2 . 14 Peak Tracking Total 7 | . 4 2 . 7 Tactical Retreats . | . . . . . Traps | -11 -10 -10 -10 -9 ------- Run | Yrd Mat Min Exi Min Traps Triggered 1 | . 1 . . . Indirectly . | . . . . . Trap Hack Attempts . | . . . . . Triggered . | . . . . . Disarmed . | . . . . . Reprogrammed . | . . . . . Reused . | . . . . . Traps Extracted . | . . . . . Installed . | . . . . . Triggered . | . . . . . Most Traps Carried 1 | . . 1 . . Machines | -11 -10 -10 -10 -9 ---------- Run | Yrd Mat Min Exi Min Machines Disabled . | . . . . . Max in Single Turn . | . . . . . Machines Repaired . | . . . . . Machines Dismantled . | . . . . . Machines Sabotaged . | . . . . . Overloaded Fab Kills . | . . . . . Hacking | -11 -10 -10 -10 -9 --------- Run | Yrd Mat Min Exi Min Machines Accessed 4 | . 1 . 3 . Terminals 1 | . 1 . . . Fabricators . | . . . . . Repair Stations . | . . . . . Recycling Units . | . . . . . Scanalyzers . | . . . . . Garrison Access . | . . . . . Total Hacks 5 | . 2 . 3 . Successful 3 | . . . 3 . Failed 2 | . 2 . . . Catastrophic . | . . . . . Database Lockouts . | . . . . . Manual . | . . . . . Terminals 2 | . 2 . . . Fabricators . | . . . . . Repair Stations . | . . . . . Recycling Units . | . . . . . Scanalyzers . | . . . . . Garrison Access . | . . . . . Terminal Hacks 3 | . . . 3 . Record 3 | . . . 3 . Fabricator Hacks . | . . . . . Repair Station Hacks . | . . . . . Recycling Unit Hacks . | . . . . . Scanalyzer . | . . . . . Garrison Access Hacks . | . . . . . Unauthorized Hacks . | . . . . . Terminals . | . . . . . Fabricators . | . . . . . Repair Stations . | . . . . . Recycling Units . | . . . . . Scanalyzers . | . . . . . Garrison Access . | . . . . . Data Cores Recovered . | . . . . . Used . | . . . . . Hacking Detections 1 | . 1 . . . Full Trace Events . | . . . . . Feedback Events . | . . . . . Feedback Blocked . | . . . . . Robot Schematics Acquired . | . . . . . Robots Built . | . . . . . Authchips . | . . . . . Time . | . . . . . Total Robot Build Rating . | . . . . . Part Schematics Acquired . | . . . . . Parts Built . | . . . . . Authchips . | . . . . . Time . | . . . . . Total Part Build Rating . | . . . . . Part Studies Acquired . | . . . . . Parts Repaired . | . . . . . Time . | . . . . . Parts Recycled . | . . . . . Recycled Matter . | . . . . . Retrieved Matter . | . . . . . Retrieved Components . | . . . . . Parts Scanalyzed . | . . . . . Part Schematics Acquired . | . . . . . Parts Damaged . | . . . . . Bothacking | -11 -10 -10 -10 -9 ------------ Run | Yrd Mat Min Exi Min Used RIF Installer . | . . . . . Robots Hacked . | . . . . . Non-combat . | . . . . . Combat . | . . . . . Robot Hacks Applied . | . . . . . Relay Couplers Released . | . . . . . Fabnet Peak Effective % . | . . . . . Robots Rewired . | . . . . . Allies Hacked . | . . . . . Hacks Repelled . | . . . . . Allies | -11 -10 -10 -10 -9 -------- Run | Yrd Mat Min Exi Min Total Allies . | . . . . . Largest Group . | . . . . . Highest-Rated Group . | . . . . . Highest-Rated Ally . | . . . . . Total Orders . | . . . . . Ally Attacks . | . . . . . Total Damage . | . . . . . Kills . | . . . . . Allies Corrupted . | . . . . . Allies Melted . | . . . . . Intel | -11 -10 -10 -10 -9 ------- Run | Yrd Mat Min Exi Min Active Infowar (turns) 1210 | . 24 383 527 276 Seismic 1210 | . 24 383 527 276 Robot Analysis Total . | . . . . . Derelict Logs Recovered 1 | . . 1 . . Drone Launches . | . . . . . Drone Recoveries . | . . . . . Exploration | -11 -10 -10 -10 -9 ------------- Run | Yrd Mat Min Exi Min Turns Passed 1763 | 58 259 383 527 536 Spaces Moved 1371 | 48 226 287 440 370 Core 5 | 1 . . . 4 Treads . | . . . . . Legs 920 | . . 285 440 195 Wheels 275 | 47 226 2 . . Hover . | . . . . . Flight 171 | . . . . 171 Fastest Speed 50 | 50 100 100 120 117 Average Speed 116 | 98 100 119 120 120 Slowest Speed 280 | 100 100 120 120 280 Overloaded Moves . | . . . . . Propulsion Burnouts . | . . . . . Robots Hopped . | . . . . . Potential Cave-ins . | . . . . . Cave-ins Triggered . | . . . . . Exploration Rate (%) 55 | 3 35 70 92 75 Regions Visited 4 Branch Regions 3 Pre-discovered Areas . | . . . . . Known Exits Taken . | . . . . . Unknown Exits Taken 4 | 1 1 1 1 . Scrap Searched 3 | . . 1 . 2 Spaces Dug . | . . . . . Terrain Destroyed 21 | . 17 . . 4 Melee . | . . . . . Projectile 4 | . . . . 4 AOE 17 | . 17 . . . Terrain Rammed . | . . . . . Walls Destroyed . | . . . . . Machines Disabled . | . . . . . Actions | -11 -10 -10 -10 -9 --------- Run | Yrd Mat Min Exi Min Total 1472 | 56 242 309 439 426 Wait . | . . . . . Move 1367 | 47 225 286 439 370 Hop . | . . . . . Pick Up 23 | 3 6 6 . 8 Fast Attach 10 | 5 1 . . 4 Attach 7 | 1 . 2 . 4 Detach 1 | . . . . 1 Swap 6 | . 2 1 . 3 Drop 15 | . . 4 . 11 Fire 42 | . 8 10 . 24 Melee . | . . . . . Ram 1 | . . . . 1 Kick . | . . . . . Crush . | . . . . . Escape Stasis . | . . . . . Rewire . | . . . . . Trap . | . . . . . Miscellaneous . | . . . . . Route ------- -11/Scrapyard -10/Materials -10/Mines (discovered 2 exits: [*Mat] / *Exi) -10/Exiles (discovered 2 exits: [*Min x2]) -9/Mines (discovered 1 exit: [*Mat]) History --------- Turn | Location | Event 29 | -11/Scrapyard | Discovered new exit (range 13) 59 | -11/Scrapyard | Entered Materials 256 | -10/Materials | Discovered new exit (range 16) 315 | -10/Materials | Build established: Mutant 318 | -10/Materials | Entered Mines 476 | -10/Mines | Found a hidden stash of uninstalled traps 530 | -10/Mines | Discovered new exit (range 12) 551 | -10/Mines | Learned Materials stockpile data 611 | -10/Mines | Deemed a non-threat by the Exiles lab entrance 612 | -10/Mines | Discovered new exit (range 5) 701 | -10/Mines | Entered Exiles 701 | -10/Exiles | Found Exiles lab abandoned 730 | -10/Exiles | Discovered new exit (range 14) 1215 | -10/Exiles | Discovered new exit (range 14) 1228 | -10/Exiles | Entered Mines 1316 | -9/Mines | A weapon hastily lodged in a ceiling crevice suddenly fell to the ground 1391 | -9/Mines | Found a damaged Exp. Sensor Array with a note attached 1394 | -9/Mines | Found Prototype Device 1464 | -9/Mines | Received a Rocket Launcher from a helpful Derelict 1479 | -9/Mines | Core integrity fell below 50% 1522 | -9/Mines | Core integrity fell below 20% 1548 | -9/Mines | Destroyed 10 combat bots 1548 | -9/Mines | Lost 4 parts (1p2n1u) 1665 | -9/Mines | Discovered new exit (range 10) 1764 | -9/Mines | Destroyed by S-10 Pest with Light Assault Rifle Last Messages --------------- Acquired Flight Unit. Dropped Hover Unit. Acquired 12 matter. Acquired Flight Unit. Acquired 9 matter. K-01 Serf collects debris. Dropped Flight Unit. K-01 Serf collects debris. Dropped Imp. Heat Sink. Acquired Flight Unit. K-01 Serf collects debris. Acquired 13 matter. K-01 Serf collects debris. Slammed into K-01 Serf. EXIT=FOUND Acquired Flight Unit. C-30 ARC bursts open, deploying its payload. S-10 Pest unfolds itself. S-10 Pest destroyed. [Achievement: Deductive Reasoning] Map ----- +----------------------------------------------------+ | ???# #???##??????????????????? | | ??# ## ##?? ???????????????????? | | ??# #### ##?? #???????????????????? | | ??# ???# ## #???????????????????? | | ??# ???## # #???????????????????? | | ??## ????# ##??????????????????? | | ???# ????# #??####????????????? | | ???# ????## ##?## ##???????????? | | ???# ?????# #####?## #???????????? | | ???###?????# #?????# #???????????? | | ???????????# #?????# ##???????????# | | ???????????# #?????# ##??????????## | | ???????????# #?????# ##???###??## | | ???????????# #?????# ##?## #### | | ????????#### #?????# #?# ## | | ??????### #?????## #?# | | ?????## #??????### #?## | | ?????# ##???????## #??## | | ?????## ##?????### #???# | | ??????### ##????### #???# # | | ????????## ####### #???## # | | ?????????## % ## #????## | | ??????????# ### ### ##????## | | ??????????# = ##?# #?# ##????# | | ??????????#ss##### #?## ###### | | ??????????# =@ #??## [% | | ??????????# #######???## | | ???????# #??????????# [%## #### | | ???????# #####????????### ==% #### | | ???????#??????????????## * = [### | | ????????????????# ### [%] %[ | | ????????????????## ####= !==% | | ?????????????????## #??# *###### | | ??????????????????# ##?# #????? | | ??????????????????# ####???# ????# | | ??????????????????# ??????# ??## | | ??????????????????# ???????# #?# | | ??????????????????#????????# ### | | ???????????????????????????# ### | | ??????????????????????????? ## | | ??????????????????????????# ### | | ??????????????????????????## #### | | ???????????????????????????###??# | | ????????????????????????????????# % | | ????????????????????????????????## !% | | ?????????????????????????????????##### | | ?????????????????????????????????????? | | ?????????????????????????????????????? | | ?????????????????????????????????????? | | ?????????????????????????????????????? | +----------------------------------------------------+ Best States ------------- Heat Dissipation 25 Energy Generation 12 Energy Capacity 265 Matter Stores 300 Matter Capacity 300 Sight Range 16 Terrain Scan Density 10 Armor Coverage 150 Evasion (%) 55 Item Schematics ----------------- None Robot Schematics ------------------ None Fabricated ------------ Nothing Repaired ---------- Nothing Studied --------- None Alien Tech Used ----------------- None Achievements -------------- Deductive Reasoning Challenges ------------ None Game ------ Seed ArchitectDirectedExoskeleton Manual? 0 Play Time 00:14:51 Cumulative 17.1 hours Start 2026.04.06 @ 16:27:16 End 2026.04.06 @ 16:41:57 Sessions 1 Manual Loads 0 Difficulty Rogue Special Mode None Game No. 24 Rogue 24 Adventurer 0 Explorer 0 Win Type - Total 0 Types 0/0/0/0/0/0/0/0/0/0 Lore% 14 Gallery% 22 Achievement% 13 Wizard Run 0 Options --------- Layout 1 ASCII 0 Keyboard 0 Movement Mouse Keybinds 0 Fullscreen 1 Font 24/Smallcaps Map View 50x35 Zoom Use 0% Tactical HUD 0 Map Filters NONE Filters NONE Steam 1 RUN: dd7ad865-65b9-4835-a577-dfce702fdbdc